fUSD/lending_fUSD_20250923
["ID","MTS","AMOUNT","RATE_DAILY","PERIOD"]
[387253209,1758664449877,-2046.35,0.00029041,3]
[387253210,1758664449887,-472.22,0.00029041,3]
[387253211,1758664449897,-1233.0,0.0002912,2]
[387253212,1758664449906,-434.0,0.0002912,2]
[387253213,1758664449917,-14253.46763913,0.00029124,11]
[387253214,1758664449927,-217.7767013,0.0002918,2]
[387253215,1758664449936,-431.83,0.00029183,3]
[387253216,1758664449946,-1219.72,0.00029183,3]
[387253217,1758664449958,-947.43,0.00029273,3]
[387253218,1758664449968,-25389.96,0.000293,7]
[387253219,1758664449978,-403.15,0.00029315,3]
[387253220,1758664449988,-1219.54,0.00029315,3]
[387253221,1758664449998,-422.15,0.00029315,3]
[387253222,1758664450008,-722.3,0.00029315,3]
[387253223,1758664450018,-425.13,0.00029315,3]
[387253224,1758664450029,-400.0,0.00029315,3]
[387253225,1758664450039,-463.61,0.00029315,3]
[387253226,1758664450049,-400.0,0.00029315,3]
[387253227,1758664450059,-400.81,0.00029315,3]
[387253228,1758664450069,-606.67,0.00029315,3]
[387253229,1758664450079,-558.51,0.00029315,3]
[387253230,1758664450089,-400.0,0.00029315,3]
[387253231,1758664450099,-517.79,0.00029315,3]
[387253232,1758664450111,-410.1,0.00029315,3]
[387253233,1758664450121,-513.24,0.00029315,3]
[387253234,1758664450132,-864.38,0.00029315,3]
[387253235,1758664450142,-400.0,0.00029315,3]
[387253236,1758664450152,-400.0,0.00029315,3]
[387253237,1758664450161,-494.7527428,0.00029315,3]
[387253238,1758664450171,-400.0,0.00029315,3]
[387253239,1758664450181,-400.0,0.00029315,3]
[387253240,1758664450192,-499.32,0.00029315,3]
[387253241,1758664450202,-389.80487905,0.00029315,3]
[387253242,1758664450212,-701.54,0.00029315,3]
[387253243,1758664450222,-570.98,0.00029315,3]
[387253244,1758664450233,-761.54,0.00029315,3]
[387253245,1758664450243,-448.15,0.00029315,3]
[387253246,1758664450253,-550.19,0.00029315,3]
[387253247,1758664450263,-527.27,0.00029315,3]
[387253248,1758664450273,-574.63,0.00029315,3]
[387253249,1758664450284,-597.0,0.00029315,3]
[387253250,1758664450294,-400.0,0.00029315,3]
[387253251,1758664450304,-433.43,0.00029315,3]
[387253252,1758664450314,-1431.46,0.00029315,3]
[387253253,1758664450324,-400.0,0.00029315,3]
[387253254,1758664450334,-888.36,0.00029315,3]
[387253255,1758664450344,-400.0,0.00029315,3]
[387253256,1758664450355,-500.78,0.00029315,3]
[387253257,1758664450364,-400.0,0.00029315,3]
[387253258,1758664450374,-543.77250129,0.00029315,3]
[387253259,1758664450384,-415.37,0.00029315,3]
[387253260,1758664450394,-400.0,0.00029315,3]
[387253261,1758664450404,-851.65,0.00029315,3]
[387253262,1758664450414,-514.2,0.00029315,3]
[387253263,1758664450429,-696.09,0.00029315,3]
[387253264,1758664450439,-942.3,0.00029315,3]
[387253265,1758664450450,-401.11,0.00029315,3]
[387253266,1758664450461,-426.89,0.00029315,3]
[387253267,1758664450471,-400.0,0.00029315,3]
[387253268,1758664450482,-483.66,0.00029315,3]
[387253269,1758664450493,-700.73,0.00029315,3]
[387253270,1758664450504,-1213.35,0.00029315,3]
[387253271,1758664450516,-432.38,0.00029315,3]
[387253272,1758664450527,-400.0,0.00029315,3]
[387253273,1758664450538,-413.32,0.00029315,3]
[387253274,1758664450549,-600.39,0.00029315,3]
[387253275,1758664450560,-525.79,0.00029315,3]
[387253276,1758664450570,-585.89,0.00029315,3]
[387253277,1758664450580,-154.23275982,0.00029315,3]
[387253278,1758664450590,-1172.14,0.00029315,3]
[387253279,1758664450600,-869.19,0.00029315,3]
[387253280,1758664450611,-655.46,0.00029315,3]
[387253281,1758664450621,-853.3,0.00029315,3]
[387253282,1758664450631,-400.0,0.00029315,3]
[387253283,1758664450642,-684.3,0.00029315,3]
[387253284,1758664450651,-433.77,0.00029315,3]
[387253285,1758664450662,-400.0,0.00029315,3]
[387253286,1758664450677,-451.05,0.00029315,3]
[387253287,1758664450687,-1034.82,0.00029315,3]
[387253288,1758664450697,-414.11,0.00029315,3]
[387253289,1758664450707,-400.0,0.00029315,3]
[387253290,1758664450717,-568.34,0.00029315,3]
[387253291,1758664450727,-497.27,0.00029315,3]
[387253292,1758664450737,-400.0,0.00029315,3]
[387253293,1758664450747,-483.14,0.00029315,3]
[387253294,1758664450757,-400.0,0.00029315,3]
[387253295,1758664450767,-963.02,0.00029315,3]
[387253296,1758664450777,-442.92,0.00029315,3]
[387253297,1758664450787,-400.0,0.00029315,3]
[387253298,1758664450797,-400.0,0.00029315,3]
[387253299,1758664450807,-419.2,0.00029315,3]
[387253300,1758664450818,-495.44,0.00029315,3]
[387253301,1758664450828,-1113.1,0.00029315,3]
[387253302,1758664450838,-564.87,0.00029315,3]
[387253303,1758664450848,-442.1,0.00029315,3]
[387253304,1758664450858,-612.62,0.00029315,3]
[387253305,1758664450868,-544.44,0.00029315,3]
[387253306,1758664450878,-553.48,0.00029315,3]
[387253307,1758664450888,-811.92,0.00029315,3]
[387253308,1758664450897,-866.52,0.00029315,3]
[387253309,1758664450908,-400.0,0.00029315,3]
[387253310,1758664450918,-1271.99,0.00029315,3]
[387253311,1758664450928,-555.94,0.00029315,3]
[387253312,1758664450938,-516.66,0.00029315,3]
[387253313,1758664450948,-443.34,0.00029315,3]
[387253314,1758664450958,-460.81,0.00029315,3]
[387253315,1758664450968,-534.71283599,0.00029315,3]
[387253316,1758664450979,-502.53,0.00029315,3]
[387253317,1758664450990,-505.37,0.00029315,3]
[387253318,1758664451000,-542.19,0.00029315,3]
[387253319,1758664451011,-688.7,0.00029315,3]
[387253320,1758664451021,-1015.44,0.00029315,3]
[387253321,1758664451031,-1292.63,0.00029315,3]
[387253322,1758664451053,-1611.73,0.00029315,3]
[387253323,1758664451071,-637.7,0.00029315,3]
[387253324,1758664451091,-1000.0,0.00029315,3]
[387253325,1758664451114,-660.83,0.00029315,3]
[387253326,1758664451135,-549.84,0.00029315,3]
[387253327,1758664451157,-1262.83,0.00029315,3]
[387253328,1758664451177,-499.50465294,0.00029315,2]
[387253329,1758664451199,-400.0,0.00029315,3]
[387253330,1758664451592,-511.14,0.00029315,3]
[387253331,1758664451619,-1072.23,0.00029315,3]
[387253332,1758664451628,-435.66,0.00029315,3]
[387253333,1758664451638,-339.35425928,0.00029315,3]
[387253334,1758664451648,-446.42,0.00029315,3]
[387253335,1758664451657,-956.24,0.00029315,3]
[387253336,1758664451666,-804.81,0.00029315,3]
[387253337,1758664451675,-493.33,0.00029315,3]
[387253338,1758664451685,-400.0,0.00029315,3]
[387253339,1758664451695,-425.12,0.00029315,3]
[387253340,1758664451704,-242.27578974,0.00029315,3]
[387253341,1758664451714,-536.14,0.00029315,3]
[387253342,1758664451723,-503.09777382,0.00029315,3]
[387253343,1758664451733,-1446.35,0.00029315,3]
[387253344,1758664451742,-647.53,0.00029315,3]
[387253345,1758664451751,-712.76,0.00029315,3]
[387253346,1758664451761,-400.0,0.00029315,3]
[387253347,1758664451770,-400.0,0.00029315,3]
[387253348,1758664451780,-742.51,0.00029315,3]
[387253349,1758664451789,-326.25719045,0.00029315,3]
[387253350,1758664451799,-609.25,0.00029315,3]
[387253351,1758664451808,-1004.12,0.00029315,3]
[387253352,1758664451818,-400.0,0.00029315,3]
[387253353,1758664451828,-1267.73,0.00029315,3]
[387253354,1758664451838,-1089.2,0.00029315,3]
[387253355,1758664451847,-936.94,0.00029315,3]
[387253356,1758664451857,-400.0,0.00029315,3]
[387253357,1758664451867,-400.0,0.00029315,3]
[387253358,1758664451876,-628.73,0.00029315,3]
[387253359,1758664451886,-792.8,0.00029315,3]
[387253360,1758664451895,-718.2,0.00029315,3]
[387253361,1758664451904,-771.65,0.00029315,3]
[387253362,1758664451914,-735.99,0.00029315,3]
[387253363,1758664451925,-724.09,0.00029315,3]
[387253364,1758664451934,-735.82,0.00029315,3]
[387253365,1758664451944,-400.0,0.00029315,3]
[387253366,1758664451954,-724.51,0.00029315,3]
[387253367,1758664451963,-590.38,0.00029315,3]
[387253368,1758664451973,-704.47,0.00029315,3]
[387253369,1758664451983,-597.65,0.00029315,3]
[387253370,1758664451992,-644.02,0.00029315,3]
[387253371,1758664452001,-490.6,0.00029315,3]
[387253372,1758664452011,-544.45,0.00029315,3]
[387253373,1758664452021,-1124.92,0.00029315,3]
[387253374,1758664452032,-400.98,0.00029315,3]
[387253375,1758664452041,-1607.1,0.00029315,3]
[387253376,1758664452051,-643.25,0.00029315,3]
[387253377,1758664452060,-702.26,0.00029315,3]
[387253378,1758664452093,-623.69,0.00029315,3]
[387253379,1758664452113,-400.0,0.00029315,3]
[387253380,1758664452134,-1080.61,0.00029315,3]
[387253381,1758664452154,-422.24,0.00029315,3]
[387253382,1758664452174,-417.7,0.00029315,3]
[387253383,1758664452194,-909.48,0.00029315,3]
[387253384,1758664452213,-441.97189077,0.00029315,3]
[387253385,1758664452233,-515.95,0.00029315,3]
[387253386,1758664452253,-400.0,0.00029315,3]
[387253387,1758664452272,-419.15,0.00029315,3]
[387253388,1758664452292,-421.32,0.00029315,3]
[387253389,1758664452312,-1535.1,0.00029315,3]
[387253390,1758664452331,-610.62,0.00029315,3]
[387253391,1758664452342,-788.82,0.00029315,3]
[387253392,1758664452351,-501.25,0.00029315,3]
[387253393,1758664452362,-400.0,0.00029315,3]
[387253394,1758664452371,-311.97884194,0.00029315,3]
[387253395,1758664452381,-400.0,0.00029315,3]
[387253396,1758664452390,-467.58,0.00029315,3]
[387253397,1758664452400,-614.35,0.00029315,3]
[387253398,1758664452409,-387.17,0.00029315,3]
[387253399,1758664452423,-686.69,0.00029315,3]
[387253400,1758664452432,-400.0,0.00029315,3]
[387253401,1758664452442,-1284.73,0.00029315,3]
[387253402,1758664452453,-642.36,0.00029315,3]
[387253403,1758664452464,-400.0,0.00029315,3]
[387253404,1758664452473,-560.54,0.00029315,3]
[387253405,1758664452483,-1073.37,0.00029315,3]
[387253406,1758664452493,-753.1,0.00029315,3]
[387253407,1758664452503,-545.97,0.00029315,3]
[387253408,1758664452514,-400.0,0.00029315,3]
[387253409,1758664452523,-400.0,0.00029315,3]
[387253410,1758664452533,-580.05,0.00029315,3]
[387253411,1758664452543,-1196.06,0.00029315,3]
[387253412,1758664452554,-779.4,0.00029315,3]
[387253413,1758664452564,-1387.31,0.00029315,3]
[387253414,1758664452574,-526.44,0.00029315,3]
[387253415,1758664452584,-914.9,0.00029315,3]
[387253416,1758664452594,-751.05,0.00029315,3]
[387253417,1758664452604,-400.0,0.00029315,3]
[387253418,1758664452613,-585.69,0.00029315,3]
[387253419,1758664452623,-10481.21,0.00029315,3]
[387253420,1758664452633,-286.17091573,0.00029315,3]
[387253421,1758664452642,-1075.59,0.00029315,3]
[387253422,1758664452652,-1243.9,0.00029315,3]
[387253423,1758664452662,-2675.56,0.00029315,3]
[387253424,1758664452672,-400.0,0.00029315,3]
[387253425,1758664452683,-603.56,0.00029315,3]
[387253426,1758664452692,-1687.56,0.00029315,3]
[387253427,1758664452702,-613.2,0.00029315,3]
[387253428,1758664452711,-1380.17,0.00029315,3]
[387253429,1758664452721,-400.0,0.00029315,3]
[387253430,1758664452732,-400.0,0.00029315,3]
[387253431,1758664452742,-1984.04,0.00029315,3]
[387253432,1758664452751,-637.31,0.00029315,3]
[387253433,1758664452761,-536.31,0.00029315,3]
[387253434,1758664452770,-1960.16,0.00029315,3]
[387253435,1758664452779,-653.4,0.00029315,3]
[387253436,1758664452789,-400.0,0.00029315,3]
[387253437,1758664452799,-502.1847841,0.00029315,3]
[387253438,1758664452808,-1811.83,0.00029315,3]
[387253439,1758664452818,-485.31,0.00029315,3]
[387253440,1758664452831,-609.4,0.00029315,3]
[387253441,1758664452843,-1777.36,0.00029315,3]
[387253442,1758664452854,-3596.07,0.00029315,3]
[387253443,1758664452867,-955.0,0.00029315,3]
[387253444,1758664452877,-1530.13,0.00029315,3]
[387253445,1758664452890,-400.0,0.00029315,3]
[387253446,1758664452900,-1065.12,0.00029315,3]
[387253447,1758664452913,-624.46,0.00029315,3]
[387253448,1758664452923,-668.62,0.00029315,3]
[387253449,1758664452933,-491.08789094,0.00029315,3]
[387253450,1758664452945,-766.88,0.00029315,3]
[387253451,1758664452955,-488.82,0.00029315,3]
[387253452,1758664452964,-1866.98,0.00029315,3]
[387253453,1758664452977,-674.88,0.00029315,3]
[387253454,1758664452987,-507.6,0.00029315,3]
[387253455,1758664452996,-1430.39,0.00029315,3]
[387253456,1758664453009,-2251.93,0.00029315,3]
[387253457,1758664453019,-1005.24,0.00029315,3]
[387253458,1758664453030,-706.55,0.00029315,3]
[387253459,1758664453039,-471.06,0.00029315,3]
[387253460,1758664453053,-440.49,0.00029315,3]
[387253461,1758664453062,-1632.87,0.00029315,3]
[387253462,1758664453075,-2172.06,0.00029315,3]
[387253463,1758664453085,-1577.53,0.00029315,3]
[387253464,1758664453098,-573.43,0.00029315,3]
[387253465,1758664453108,-1762.21,0.00029315,3]
[387253466,1758664453119,-2598.87,0.00029315,3]
[387253467,1758664453128,-2106.48,0.00029315,3]
[387253468,1758664453139,-2137.16,0.00029315,3]
[387253469,1758664453150,-1633.99,0.00029315,3]
[387253470,1758664453162,-665.33,0.00029315,3]
[387253471,1758664453172,-400.0,0.00029315,3]
[387253472,1758664453186,-507.04,0.00029315,3]
[387253473,1758664453196,-652.14,0.00029315,3]
[387253474,1758664453208,-441.78,0.00029315,3]
[387253475,1758664453219,-2095.57,0.00029315,3]
[387253476,1758664453229,-2272.09,0.00029315,3]
[387253477,1758664453241,-2047.84,0.00029315,3]
[387253478,1758664453251,-425.92,0.00029315,3]
[387253479,1758664453264,-782.31,0.00029315,3]
[387253480,1758664453273,-1845.88,0.00029315,3]
[387253481,1758664453286,-1531.58,0.00029315,3]
[387253482,1758664453298,-1188.08,0.00029315,3]
[387253483,1758664453308,-1490.46,0.00029315,3]
[387253484,1758664453321,-2033.65,0.00029315,3]
[387253485,1758664453331,-2177.65,0.00029315,3]
[387253486,1758664453344,-2728.22,0.00029315,3]
[387253487,1758664453356,-1405.11,0.00029315,3]
[387253488,1758664453365,-680.61,0.00029315,3]
[387253489,1758664453378,-1113.08,0.00029315,3]
[387253490,1758664453389,-1415.66,0.00029315,3]
[387253491,1758664453400,-1698.64,0.00029315,3]
[387253492,1758664453413,-1312.62,0.00029315,3]
[387253493,1758664453428,-769.12,0.00029315,3]
[387253494,1758664453437,-1079.65,0.00029315,3]
[387253495,1758664453450,-400.0,0.00029315,3]
[387253496,1758664453460,-916.94,0.00029315,3]
[387253497,1758664453475,-2186.72,0.00029315,3]
[387253498,1758664453487,-546.81,0.00029315,3]
[387253499,1758664453497,-952.65,0.00029315,3]
[387253500,1758664453507,-485.45,0.00029315,3]
[387253501,1758664453517,-643.52,0.00029315,3]
[387253502,1758664453527,-1538.99,0.00029315,3]
[387253503,1758664453537,-400.0,0.00029315,3]
[387253504,1758664453547,-767.66,0.00029315,3]
[387253505,1758664453556,-1510.65,0.00029315,3]
[387253506,1758664453566,-1183.46,0.00029315,3]
[387253507,1758664453576,-1025.71,0.00029315,3]
[387253508,1758664453585,-1292.75,0.00029315,3]
[387253509,1758664453595,-1576.62,0.00029315,3]
[387253510,1758664453604,-589.78,0.00029315,3]
[387253511,1758664453614,-2168.52,0.00029315,3]
[387253512,1758664453624,-156.39504582,0.00029315,3]
[387253513,1758664453633,-1248.87,0.00029315,3]
[387253514,1758664453643,-1438.1,0.00029315,3]
[387253515,1758664453652,-801.34,0.00029315,3]
[387253516,1758664453662,-408.05,0.00029315,3]
[387253517,1758664453671,-400.0,0.00029315,3]
[387253518,1758664453680,-1989.17,0.00029315,3]
[387253519,1758664453690,-1355.06,0.00029315,3]
[387253520,1758664453700,-1742.92,0.00029315,3]
[387253521,1758664453710,-1035.45,0.00029315,3]
[387253522,1758664453720,-466.56,0.00029315,3]
[387253523,1758664453730,-1515.98,0.00029315,3]
[387253524,1758664453740,-1785.83,0.00029315,3]
[387253525,1758664453749,-400.0,0.00029315,3]
[387253526,1758664453759,-835.56,0.00029315,3]
[387253527,1758664453769,-1984.29,0.00029315,3]
[387253528,1758664453779,-1716.89,0.00029315,3]
[387253529,1758664453788,-635.55,0.00029315,3]
[387253530,1758664453798,-786.93,0.00029315,3]
[387253531,1758664453806,-645.64,0.00029315,3]
[387253532,1758664453816,-400.0,0.00029315,3]
[387253533,1758664453826,-2059.55,0.00029315,3]
[387253534,1758664453836,-1514.01,0.00029315,3]
[387253535,1758664453845,-2306.45,0.00029315,3]
[387253536,1758664453855,-400.0,0.00029315,3]
[387253537,1758664453864,-1545.45,0.00029315,3]
[387253538,1758664453873,-2095.63,0.00029315,3]
[387253539,1758664453883,-1430.02,0.00029315,3]
[387253540,1758664453892,-909.31,0.00029315,3]
[387253541,1758664453901,-1827.73,0.00029315,3]
[387253542,1758664453912,-690.64,0.00029315,3]
[387253543,1758664453922,-2101.8,0.00029315,3]
[387253544,1758664453931,-966.9,0.00029315,3]
[387253545,1758664453941,-655.71,0.00029315,3]
[387253546,1758664453950,-1470.41,0.00029315,3]
[387253547,1758664453959,-603.72,0.00029315,3]
[387253548,1758664453969,-5585.99,0.00029315,3]
[387253549,1758664453978,-400.0,0.00029315,3]
[387253550,1758664453988,-234.67244,0.00029315,3]
[387253551,1758664453997,-1883.8,0.00029315,3]
[387253552,1758664454007,-1867.36,0.00029315,3]
[387253553,1758664454016,-1963.55,0.00029315,3]
[387253554,1758664454026,-614.58,0.00029315,3]
[387253555,1758664454036,-952.78,0.00029315,3]
[387253556,1758664454046,-400.0,0.00029315,3]
[387253557,1758664454055,-304.43915529,0.00029315,3]
[387253558,1758664454064,-1560.6,0.00029315,3]
[387253559,1758664454074,-1953.23,0.00029315,3]
[387253560,1758664454084,-1674.22,0.00029315,3]
[387253561,1758664454093,-492.65,0.00029315,3]
[387253562,1758664454103,-924.37,0.00029315,3]
[387253563,1758664454112,-1508.32,0.00029315,3]
[387253564,1758664454122,-1865.08,0.00029315,3]
[387253565,1758664454132,-473.50578705,0.00029315,3]
[387253566,1758664454141,-1262.69,0.00029315,3]
[387253567,1758664454152,-1502.94,0.00029315,3]
[387253568,1758664454162,-1473.52,0.00029315,3]
[387253569,1758664454171,-1344.24,0.00029315,3]
[387253570,1758664454181,-957.08,0.00029315,3]
[387253571,1758664454327,-528.66,0.00029315,3]
[387253572,1758664454338,-552.31,0.00029315,3]
[387253573,1758664454347,-2161.43,0.00029315,3]
[387253574,1758664454357,-2128.27,0.00029315,3]
[387253575,1758664454366,-943.67,0.00029315,3]
[387253576,1758664454375,-698.14,0.00029315,3]
[387253577,1758664454384,-956.83,0.00029315,3]
[387253578,1758664454393,-1587.02,0.00029315,3]
[387253579,1758664454402,-428.71,0.00029315,3]
[387253580,1758664454412,-1021.78,0.00029315,3]
[387253581,1758664454426,-1854.69,0.00029315,3]
[387253582,1758664454435,-533.26,0.00029315,3]
[387253583,1758664454444,-7304.35,0.00029315,3]
[387253584,1758664454454,-675.91,0.00029315,3]
[387253585,1758664454465,-1334.3,0.00029315,3]
[387253586,1758664454476,-447.62,0.00029315,3]
[387253587,1758664454485,-803.81,0.00029315,3]
[387253588,1758664454496,-400.0,0.00029315,3]
[387253589,1758664454506,-2319.15,0.00029315,3]
[387253590,1758664454515,-400.0,0.00029315,3]
[387253591,1758664454524,-1143.73,0.00029315,3]
[387253592,1758664454535,-1693.96,0.00029315,3]
[387253593,1758664454544,-808.53,0.00029315,3]
[387253594,1758664454554,-1798.02,0.00029315,3]
[387253595,1758664454563,-400.0,0.00029315,3]
[387253596,1758664454572,-187.26453093,0.00029315,3]
[387253597,1758664454582,-1265.14,0.00029315,3]
[387253598,1758664454591,-400.0,0.00029315,3]
[387253599,1758664454600,-493.9,0.00029315,3]
[387253600,1758664454610,-528.22,0.00029315,3]
[387253601,1758664454619,-1501.23,0.00029315,3]
[387253602,1758664454629,-400.0,0.00029315,3]
[387253603,1758664454639,-480.24,0.00029315,3]
[387253604,1758664454648,-400.0,0.00029315,3]
[387253605,1758664454658,-1303.69,0.00029315,3]
[387253606,1758664454667,-400.0,0.00029315,3]
[387253607,1758664454677,-1157.48,0.00029315,3]
[387253608,1758664454687,-810.26,0.00029315,3]
[387253609,1758664454696,-676.36,0.00029315,3]
[387253610,1758664454706,-923.87,0.00029315,3]
[387253611,1758664454716,-865.69,0.00029315,3]
[387253612,1758664454725,-1229.06,0.00029315,3]
[387253613,1758664454735,-645.83,0.00029315,3]
[387253614,1758664454744,-1798.6,0.00029315,3]
[387253615,1758664454754,-549.42,0.00029315,3]
[387253616,1758664454763,-404.28,0.00029315,3]
[387253617,1758664454773,-1589.65,0.00029315,3]
[387253618,1758664454782,-559.17,0.00029315,3]
[387253619,1758664454792,-1587.3,0.00029315,3]
[387253620,1758664454801,-1163.2,0.00029315,3]
[387253621,1758664454811,-536.97,0.00029315,3]
[387253622,1758664454820,-400.0,0.00029315,2]
[387253623,1758664454830,-2080.14,0.00029315,3]
[387253624,1758664454839,-529.51,0.00029315,3]
[387253625,1758664454849,-931.36,0.00029315,3]
[387253626,1758664454858,-1619.96,0.00029315,3]
[387253627,1758664454868,-453.19,0.00029315,3]
[387253628,1758664454877,-948.64,0.00029315,3]
[387253629,1758664454886,-400.0,0.00029315,3]
[387253630,1758664454896,-1551.51,0.00029315,3]
[387253631,1758664454905,-13739.2,0.00029315,3]
[387253632,1758664454915,-1871.37,0.00029315,3]
[387253633,1758664454924,-618.32,0.00029315,3]
[387253634,1758664454934,-458.91,0.00029315,3]
[387253635,1758664454947,-657.58,0.00029315,3]
[387253636,1758664454957,-400.0,0.00029315,3]
[387253637,1758664454966,-1848.91,0.00029315,3]
[387253638,1758664454975,-1506.02,0.00029315,3]
[387253639,1758664454985,-514.97,0.00029315,3]
[387253640,1758664454994,-400.0,0.00029315,3]
[387253641,1758664455004,-477.74,0.00029315,3]
[387253642,1758664455013,-400.0,0.00029315,3]
[387253643,1758664455023,-1395.95,0.00029315,3]
[387253644,1758664455032,-400.0,0.00029315,3]
[387253645,1758664455042,-1575.42,0.00029315,3]
[387253646,1758664455051,-1347.82,0.00029315,3]
[387253647,1758664455060,-1495.51,0.00029315,3]
[387253648,1758664455070,-525.32,0.00029315,3]
[387253649,1758664455079,-1907.27,0.00029315,3]
[387253650,1758664455089,-1023.51,0.00029315,3]
[387253651,1758664455099,-432.69,0.00029315,3]
[387253652,1758664455109,-1351.02,0.00029315,3]
[387253653,1758664455118,-880.27,0.00029315,3]
[387253654,1758664455128,-548.79,0.00029315,3]
[387253655,1758664455138,-786.35,0.00029315,3]
[387253656,1758664455147,-451.0,0.00029315,3]
[387253657,1758664455157,-1903.53,0.00029315,3]
[387253658,1758664455167,-702.83,0.00029315,3]
[387253659,1758664455177,-2096.52,0.00029315,3]
[387253660,1758664455186,-1019.97,0.00029315,3]
[387253661,1758664455196,-475.27,0.00029315,3]
[387253662,1758664455205,-696.03,0.00029315,3]
[387253663,1758664455215,-419.83,0.00029315,3]
[387253664,1758664455225,-529.1,0.00029315,3]
[387253665,1758664455235,-1931.45,0.00029315,3]
[387253666,1758664455245,-601.48,0.00029315,3]
[387253667,1758664455254,-2252.15,0.00029315,3]
[387253668,1758664455264,-450.0,0.00029315,3]
[387253669,1758664455275,-536.36,0.00029315,3]
[387253670,1758664455286,-516.75,0.00029315,3]
[387253671,1758664455296,-2161.44,0.00029315,3]
[387253672,1758664455305,-620.93,0.00029315,3]
[387253673,1758664455315,-803.72,0.00029315,3]
[387253674,1758664455324,-1607.31,0.00029315,3]
[387253675,1758664455334,-2098.36,0.00029315,3]
[387253676,1758664455343,-1788.33,0.00029315,3]
[387253677,1758664455353,-3658.05,0.00029315,3]
[387253678,1758664455362,-998.12,0.00029315,3]
[387253679,1758664455371,-1550.42,0.00029315,3]
[387253680,1758664455381,-1221.01,0.00029315,3]
[387253681,1758664455394,-1421.09,0.00029315,3]
[387253682,1758664455403,-1581.33,0.00029315,3]
[387253683,1758664455414,-1796.87,0.00029315,3]
[387253684,1758664455436,-510.18,0.00029315,3]
[387253685,1758664455451,-515.25,0.00029315,3]
[387253686,1758664455462,-400.0,0.00029315,3]
[387253687,1758664455472,-1366.95,0.00029315,3]
[387253688,1758664455482,-1983.1,0.00029315,3]
[387253689,1758664455492,-566.08,0.00029315,3]
[387253690,1758664455501,-1644.62,0.00029315,3]
[387253691,1758664455511,-703.73,0.00029315,3]
[387253692,1758664455520,-421.65,0.00029315,3]
[387253693,1758664455530,-712.53,0.00029315,3]
[387253694,1758664455539,-838.91,0.00029315,3]
[387253695,1758664455549,-400.0,0.00029315,3]
[387253696,1758664455559,-1691.7,0.00029315,3]
[387253697,1758664455568,-1746.85,0.00029315,3]
[387253698,1758664455578,-586.14,0.00029315,3]
[387253699,1758664455588,-2088.64,0.00029315,3]
[387253700,1758664455598,-400.0,0.00029315,3]
[387253701,1758664455608,-1208.42,0.00029315,3]
[387253702,1758664455617,-706.04,0.00029315,3]
[387253703,1758664455627,-1530.19,0.00029315,3]
[387253704,1758664455636,-2924.19,0.00029315,3]
[387253705,1758664455646,-12997.44,0.00029315,3]
[387253706,1758664455655,-1462.57,0.00029315,3]
[387253707,1758664455665,-1005.85,0.00029315,3]
[387253708,1758664455675,-2130.52,0.00029315,3]